bitfinex-derivatives/quotes_BTCF0:USTF0_20251216
["timestamp","ask_amount","ask_price","bid_price","bid_amount"]
[1765910089547,0.05566,87772.0,87771.0,0.05809]
[1765910090648,0.05566,87772.0,87771.0,0.03006]
[1765910091034,0.05566,87772.0,87771.0,0.02906]
[1765910091240,0.05566,87772.0,87771.0,0.05709]
[1765910091640,0.0113955,87773.0,87763.0,0.3608]
[1765910091641,0.0704563,87767.0,87766.0,0.05922498]
[1765910091840,0.0704566,87764.0,87763.0,0.3608]
[1765910092952,0.0704566,87764.0,87763.0,0.38986]
[1765910093652,0.0704566,87764.0,87763.0,0.41789]
[1765910094349,0.05906,87764.0,87763.0,0.41789]
[1765910095045,0.05906,87764.0,87763.0,0.41889]
[1765910095646,0.05906,87764.0,87763.0,0.41789]
[1765910096153,0.05906,87764.0,87763.0,0.41889]
[1765910096842,0.05906,87764.0,87763.0,0.41789]
[1765910097242,0.05906,87764.0,87763.0,0.4292868]
[1765910098452,0.05906,87764.0,87763.0,0.38986]
[1765910098644,0.05906,87764.0,87763.0,0.3608]
[1765910099253,0.05906,87764.0,87763.0,0.41789]
[1765910102246,0.05906,87764.0,87763.0,0.4292868]
[1765910103456,0.02973,87764.0,87763.0,0.4292868]
[1765910103653,0.05906,87768.0,87767.0,0.0684863]
[1765910103965,0.07521,87776.0,87775.0,0.05559]
[1765910104151,0.40812,87776.0,87775.0,0.05559]
[1765910104553,0.02887,87776.0,87775.0,0.4277852]
[1765910104758,0.00017054,87782.0,87781.0,0.05559]
[1765910105654,0.02904054,87782.0,87781.0,0.05559]
[1765910106055,0.00017054,87782.0,87781.0,0.05559]
[1765910107665,0.05849054,87782.0,87781.0,0.05559]
[1765910110055,0.05832,87771.0,87770.0,0.05658999]
[1765910110256,0.0697157,87771.0,87770.0,0.05559]
[1765910110561,0.0697166,87764.0,87763.0,0.02798]
[1765910110963,0.069717,87761.0,87760.0,0.02815089]
[1765910111264,0.430517,87761.0,87760.0,0.00017089]
[1765910111566,0.430517,87761.0,87760.0,0.02815089]
[1765910112758,0.430517,87761.0,87760.0,0.00017089]
[1765910113161,0.431517,87761.0,87760.0,0.00017089]
[1765910113360,0.431517,87761.0,87760.0,0.05576089]
[1765910113764,0.432517,87761.0,87760.0,0.02815089]
[1765910114153,0.431517,87761.0,87760.0,0.00017089]
[1765910114358,0.432517,87761.0,87760.0,0.02815089]
[1765910114768,0.432517,87761.0,87760.0,0.00017089]
[1765910116265,0.431517,87761.0,87760.0,0.00017089]
[1765910116569,0.431517,87761.0,87760.0,0.05576089]
[1765910116767,0.432517,87761.0,87760.0,0.00017089]
[1765910116968,0.432517,87761.0,87745.0,0.41639]
[1765910116969,0.069719,87746.0,87745.0,0.41639]
[1765910117161,0.069719,87746.0,87745.0,0.05559]
[1765910117765,0.05832,87746.0,87745.0,0.05559]
[1765910118066,0.0697186,87749.0,87748.0,0.05559]
[1765910118254,0.06983276,87749.0,87748.0,0.05559]
[1765910118768,0.04038276,87749.0,87748.0,0.05559]
[1765910118962,0.00011416,87749.0,87748.0,0.05559]
[1765910119161,0.05843416,87749.0,87748.0,0.05559]
[1765910119671,0.00011416,87749.0,87748.0,0.05559]
[1765910119868,0.00011416,87749.0,87748.0,0.41639]
[1765910121674,0.00011416,87749.0,87748.0,0.41839]
[1765910121975,0.00011416,87749.0,87748.0,0.42039]
[1765910123073,0.00011416,87749.0,87748.0,0.41739]
[1765910123276,0.00011416,87749.0,87748.0,0.41839]
[1765910123569,0.05843416,87749.0,87748.0,0.41839]
[1765910125174,0.05843416,87749.0,87748.0,0.41739]
[1765910125475,0.05843416,87749.0,87748.0,0.41639]
[1765910126474,0.41923416,87749.0,87748.0,0.05559]
[1765910127570,0.41923416,87749.0,87748.0,0.02798]
[1765910127876,0.41923416,87749.0,87748.0,0.05559]
[1765910129981,0.05843416,87749.0,87748.0,0.05559]
[1765910131088,0.05843416,87749.0,87741.0,0.05559]
[1765910131089,0.0697195,87742.0,87741.0,0.05559]
[1765910131286,0.01642,87745.0,87739.0,0.0113999]
[1765910131287,0.06983276,87749.0,87748.0,0.05559]
[1765910132082,0.0697196,87741.0,87740.0,0.05658999]
[1765910132587,0.0697196,87741.0,87727.0,0.40126625]
[1765910132588,0.07474,87738.0,87737.0,0.00017089]
[1765910132785,0.07474,87738.0,87719.0,0.05559]
[1765910132786,0.05832,87720.0,87719.0,0.05559]
[1765910132983,0.00012827,87720.0,87719.0,0.41639]
[1765910134590,0.00012827,87720.0,87719.0,0.41839]
[1765910134792,0.00012827,87720.0,87719.0,0.42039]
[1765910135390,0.05834827,87720.0,87719.0,0.41839]
[1765910135589,0.05834827,87720.0,87719.0,0.41739]
[1765910135590,0.07592827,87720.0,87719.0,0.41739]
[1765910135797,0.07592827,87720.0,87719.0,0.41839]
[1765910137898,0.07592827,87720.0,87719.0,0.001]
[1765910138194,0.0758,87712.0,87711.0,0.030031]
[1765910138390,0.0758,87712.0,87711.0,0.059031]
[1765910138593,0.0872034,87712.0,87711.0,0.059031]
[1765910140597,0.0872034,87712.0,87711.0,0.000171]
[1765910140987,0.0872034,87712.0,87711.0,0.030031]
[1765910141192,0.0872034,87712.0,87711.0,0.059031]
[1765910142300,0.54396,87718.0,87711.0,0.059031]
[1765910142301,0.57395,87718.0,87717.0,0.05886]
[1765910142694,0.02999,87718.0,87717.0,0.05886]
[1765910143394,0.05822,87718.0,87717.0,0.05886]
[1765910146890,0.05834827,87720.0,87719.0,0.05886]
[1765910147091,0.00012827,87720.0,87719.0,0.05886]
[1765910147995,0.00012827,87720.0,87719.0,0.41966]
[1765910148196,0.000171,87728.0,87727.0,0.0702615]
[1765910148397,0.000171,87728.0,87727.0,0.4310615]
[1765910149011,0.02999,87742.0,87741.0,0.0702596]
[1765910149707,0.3608,87744.0,87743.0,0.05886]
[1765910150100,0.39079,87744.0,87743.0,0.05886]
[1765910150407,0.41902,87744.0,87743.0,0.05886]
[1765910152706,0.05822,87744.0,87743.0,0.05886]
[1765910152909,0.02999,87744.0,87743.0,0.05886]
[1765910153105,0.05822,87744.0,87743.0,0.05886]
[1765910153411,0.0758,87744.0,87743.0,0.05886]
[1765910154111,0.0758,87744.0,87743.0,0.05986]
[1765910154603,0.0758,87744.0,87743.0,0.05886]
[1765910155006,0.0758,87744.0,87743.0,0.02986]
[1765910155210,0.06962,87738.0,87737.0,0.41966]
[1765910155411,0.05822,87738.0,87737.0,0.41966]
[1765910157216,0.21420788,87750.0,87749.0,0.05886]
[1765910157415,0.05822,87750.0,87749.0,0.0702586]
[1765910158506,0.05922,87750.0,87749.0,0.0702586]
[1765910159610,0.06022,87750.0,87749.0,0.0702586]
[1765910159812,0.002,87750.0,87749.0,0.0702586]
[1765910160417,0.0008291,87750.0,87749.0,0.0702586]
[1765910160610,0.000171,87752.0,87751.0,0.05886]
[1765910160918,0.075971,87752.0,87751.0,0.05886]
[1765910161519,0.075971,87752.0,87751.0,0.02986]
[1765910161817,0.030161,87752.0,87751.0,0.05986]
[1765910162116,0.058391,87752.0,87751.0,0.05986]
[1765910162508,0.000171,87752.0,87751.0,0.05986]
[1765910163517,0.0696151,87777.0,87776.0,0.0702551]
[1765910164016,0.0696151,87777.0,87776.0,0.05886]
[1765910164215,0.0683557,87771.0,87770.0,0.05624]
[1765910167820,0.0683557,87771.0,87770.0,0.02921]
[1765910168021,0.05696,87770.0,87769.0,0.3608]
[1765910168319,0.05696,87767.0,87766.0,0.02938089]
[1765910169221,0.05696,87767.0,87766.0,0.05641089]
[1765910170511,0.05696,87767.0,87766.0,0.00017089]
[1765910170817,0.05696,87767.0,87766.0,0.02938089]
[1765910171012,0.02913,87767.0,87766.0,0.05641089]
[1765910171212,0.05696,87767.0,87766.0,0.05641089]
[1765910171706,0.05796,87767.0,87766.0,0.05641089]
[1765910172222,0.05796,87767.0,87766.0,0.00017089]
[1765910172423,0.05796,87767.0,87766.0,0.02938089]
[1765910172813,0.05896,87767.0,87766.0,0.00017089]
[1765910173218,0.05696,87767.0,87766.0,0.00017089]
[1765910173614,0.05696,87767.0,87766.0,0.05641089]
[1765910174225,0.05796,87767.0,87766.0,0.05641089]
[1765910174610,0.0693563,87767.0,87766.0,0.06780729]
[1765910174815,0.0683563,87767.0,87766.0,0.06780729]
[1765910175722,0.05696,87767.0,87766.0,0.06780729]
[1765910175917,0.3608,87772.0,87770.0,0.0676359]
[1765910176119,0.3608,87772.0,87766.0,0.00017089]
[1765910176120,0.05696,87775.0,87774.0,0.05624]
[1765910176925,0.02913,87775.0,87774.0,0.05624]
[1765910177110,0.05696,87775.0,87774.0,0.05624]
[1765910177422,0.05696,87780.0,87779.0,0.05624]
[1765910177623,0.02913,87780.0,87779.0,0.05624]
[1765910177925,0.02913,87780.0,87779.0,0.0676347]
[1765910178422,0.00017089,87784.0,87783.0,0.0676342]
[1765910180528,0.00017089,87784.0,87783.0,0.0696342]
[1765910182729,0.0850309,87808.0,87807.0,0.05624]
[1765910182930,0.07364,87800.0,87799.0,0.011392]
[1765910183128,0.07364,87800.0,87799.0,0.067632]
[1765910183328,0.085032,87800.0,87799.0,0.05624]
[1765910183836,0.05696,87799.0,87798.0,0.3608]
[1765910184130,0.085033,87792.0,87791.0,0.02938089]
[1765910184336,0.085033,87792.0,87791.0,0.00017089]
[1765910184533,0.0683554,87774.0,87773.0,0.3608]
[1765910184719,0.0683566,87764.0,87763.0,0.41704]
[1765910185032,0.068357,87761.0,87760.0,0.00013854]
[1765910186637,0.05696,87761.0,87760.0,0.05637854]
[1765910187039,0.05796,87761.0,87760.0,0.05637854]
[1765910187226,0.05896,87761.0,87760.0,0.05637854]
[1765910187623,0.05896,87761.0,87760.0,0.00013854]
[1765910187624,0.05796,87761.0,87760.0,0.00013854]
[1765910187828,0.05796,87761.0,87760.0,0.05637854]
[1765910188035,0.05696,87761.0,87760.0,0.00013854]
[1765910189628,0.05796,87761.0,87760.0,0.00013854]
[1765910190431,0.05696,87761.0,87760.0,0.00013854]
[1765910190637,0.05796,87761.0,87760.0,0.00013854]
[1765910191332,0.05696,87761.0,87760.0,0.00013854]
[1765910191542,0.05696,87761.0,87760.0,0.02934854]
[1765910191838,0.05696,87761.0,87760.0,0.05637854]
[1765910192038,0.0113961,87768.0,87767.0,0.05624]
[1765910192241,0.0683561,87768.0,87767.0,0.05624]
[1765910192541,0.0850361,87768.0,87767.0,0.05624]
[1765910192741,0.05696,87768.0,87767.0,0.05624]
[1765910192941,0.07364,87768.0,87767.0,0.05624]
[1765910193537,0.05696,87761.0,87760.0,0.00013854]
[1765910194547,0.05696,87761.0,87760.0,0.05727854]
[1765910196040,0.05796,87761.0,87760.0,0.05727854]
[1765910196242,0.05796,87761.0,87760.0,0.00013854]
[1765910196847,0.05796,87761.0,87760.0,0.02741854]
[1765910196848,0.05696,87761.0,87760.0,0.02741854]
[1765910197550,0.05696,87761.0,87760.0,0.00013854]
[1765910199751,0.05796,87761.0,87760.0,0.00013854]
[1765910200953,0.0688081,87753.0,87752.0,0.00017089]
[1765910201256,0.7829681,87753.0,87752.0,0.00017089]
[1765910201954,0.78305059,87753.0,87752.0,0.00017089]
[1765910203153,0.78405059,87753.0,87752.0,0.00017089]
[1765910203542,0.78505059,87753.0,87752.0,0.00017089]
[1765910207554,0.0851092,87744.0,87743.0,0.0113993]
[1765910207748,0.0851092,87744.0,87742.0,0.3608]
[1765910207749,0.05741,87743.0,87742.0,0.3608]
[1765910207950,0.05741,87738.0,87737.0,0.0680501]
[1765910208142,0.77165813,87738.0,87737.0,0.0680501]
[1765910208548,0.05741,87733.0,87732.0,0.4288508]
[1765910208755,0.05741,87733.0,87732.0,0.41745]
[1765910209956,0.05741,87733.0,87732.0,0.42145]
[1765910210346,0.05741,87733.0,87732.0,0.41945]
[1765910210760,0.05741,87733.0,87732.0,0.41845]
[1765910210961,0.05741,87733.0,87732.0,0.38908]
[1765910211552,0.05741,87733.0,87732.0,0.3618]
[1765910211754,0.05741,87733.0,87732.0,0.001]
[1765910212057,0.05741,87733.0,87732.0,0.002]
[1765910212258,0.05741,87733.0,87732.0,0.001]
[1765910212453,0.0688115,87727.0,87726.0,0.00017089]
[1765910212759,0.0688115,87727.0,87726.0,0.05682089]
[1765910213558,0.02892,87733.0,87732.0,0.05665]
[1765910213764,0.001,87733.0,87732.0,0.05665]
[1765910213963,0.05741,87737.0,87736.0,0.0680503]
[1765910214270,0.77157,87737.0,87736.0,0.0680503]
[1765910215264,0.00012813,87738.0,87737.0,0.05665]
[1765910217361,0.00012813,87738.0,87737.0,0.05865]
[1765910218059,0.00012813,87738.0,87737.0,0.06065]
[1765910219263,0.00012813,87738.0,87737.0,0.05865]
[1765910219467,0.00017089,87744.0,87743.0,0.05665]
[1765910219657,0.00017089,87744.0,87743.0,0.41745]
[1765910219859,0.00017089,87744.0,87743.0,0.4288494]
[1765910220059,0.0393176,87757.0,87756.0,0.05665]
[1765910220254,0.0688076,87757.0,87756.0,0.05665]
[1765910220962,0.3608,87765.0,87764.0,0.0680467]
[1765910220963,0.05758099,87765.0,87764.0,0.0680467]
[1765910221164,0.05758099,87765.0,87750.0,0.00099999]
[1765910221165,0.068807,87761.0,87760.0,0.05665]
[1765910221760,0.040887,87761.0,87751.0,0.3608]
[1765910221955,0.0688082,87754.0,87753.0,0.05665]
[1765910222757,0.0688082,87754.0,87751.0,0.3721983]
[1765910222758,0.001,87757.0,87756.0,0.05665]
[1765910223363,0.05841,87761.0,87760.0,0.05665]
[1765910223762,0.0681274,87758.0,87757.0,0.3608]
[1765910223964,0.05673,87751.0,87750.0,0.0683784]
[1765910224165,0.05673,87760.0,87759.0,0.0683773]
[1765910224363,0.06134775,87780.0,87759.0,0.0683773]
[1765910224364,0.55418,87768.0,87764.0,0.05698]
[1765910224674,0.55418,87768.0,87764.0,0.0683767]
[1765910225770,0.01713,87784.0,87764.0,0.0683767]
[1765910225966,0.0276951,87776.0,87764.0,0.0683767]
[1765910226474,0.0113954,87774.0,87764.0,0.0683767]
[1765910226661,0.0276952,87776.0,87764.0,0.0693767]
[1765910226866,0.0113957,87772.0,87764.0,0.0703767]
[1765910227068,0.011396,87770.0,87764.0,0.0703767]
[1765910227576,0.011396,87770.0,87764.0,0.0693767]
[1765910227776,0.3721953,87775.0,87764.0,0.0713767]
[1765910228075,0.0113955,87773.0,87764.0,0.0703767]
[1765910228276,0.0113958,87771.0,87764.0,0.0723767]
[1765910228877,0.3608,87775.0,87764.0,0.0713767]
[1765910229575,0.0113965,87766.0,87764.0,0.0713767]
[1765910229772,0.02822099,87765.0,87764.0,0.0703767]
[1765910229974,0.02822099,87765.0,87764.0,0.05898]
[1765910229975,0.05690099,87765.0,87764.0,0.05898]
[1765910230285,0.05690099,87765.0,87764.0,0.002]
[1765910230477,0.05690099,87765.0,87764.0,0.05898]
[1765910230669,0.02822099,87765.0,87764.0,0.05898]
[1765910230870,0.05690099,87765.0,87764.0,0.05898]
[1765910231379,0.05690099,87765.0,87764.0,0.05798]
[1765910232565,0.05790099,87765.0,87764.0,0.05698]
[1765910232971,0.05790099,87765.0,87764.0,0.05798]
[1765910234073,0.05690099,87765.0,87764.0,0.05798]
[1765910234467,0.05690099,87765.0,87764.0,0.05898]
[1765910236068,0.05690099,87765.0,87764.0,0.002]
[1765910236491,0.05690099,87765.0,87764.0,0.02987]
[1765910237186,0.05690099,87765.0,87764.0,0.02887]
[1765910237576,0.05690099,87765.0,87764.0,0.05798]
[1765910237976,0.05690099,87765.0,87764.0,0.05698]
[1765910239592,0.05690099,87765.0,87764.0,0.0683767]
[1765910240588,0.05690099,87765.0,87764.0,0.05698]
[1765910241788,0.05690099,87765.0,87764.0,0.0683767]
[1765910242499,0.05690099,87765.0,87764.0,0.05698]
[1765910243894,0.0681274,87758.0,87757.0,0.38867]
[1765910244199,0.02805,87751.0,87750.0,0.0683785]
[1765910244395,0.7992969,87762.0,87761.0,0.05698]
[1765910244787,0.7992969,87762.0,87761.0,0.02787]
[1765910245099,0.7992969,87762.0,87750.0,0.51671982]
[1765910245100,0.0681283,87752.0,87751.0,0.0683782]
[1765910245600,0.05673,87752.0,87751.0,0.0683782]
[1765910246001,0.0681283,87751.0,87750.0,0.3608]
[1765910246501,0.05673,87751.0,87750.0,0.41778]
[1765910247792,0.05773,87751.0,87750.0,0.41778]
[1765910248100,0.05773,87751.0,87750.0,0.41878]
[1765910248394,0.07386,87756.0,87755.0,0.05698]
[1765910249001,0.07386,87756.0,87755.0,0.0683778]
[1765910249205,0.07386,87756.0,87755.0,0.05698]
[1765910249797,0.07386,87756.0,87755.0,0.02787]
[1765910250198,0.07386,87756.0,87755.0,0.05698]
[1765910252695,0.0852577,87756.0,87755.0,0.0683778]
[1765910253507,0.0852577,87756.0,87750.0,0.36179999]
[1765910253508,0.67761,87759.0,87758.0,0.0683774]
[1765910253705,0.70629,87759.0,87758.0,0.0683774]
[1765910253907,0.70629,87759.0,87758.0,0.05698]
[1765910254206,0.77077,87759.0,87758.0,0.05698]
[1765910254499,0.05673,87759.0,87758.0,0.05698]
[1765910254701,0.05673,87759.0,87757.0,0.0113975]
[1765910254702,0.02758,87762.0,87755.0,0.001]
[1765910254897,0.05481,87762.0,87761.0,0.068627]
[1765910255302,0.0824769,87762.0,87761.0,0.068627]
[1765910256011,0.05481,87788.0,87787.0,0.05723]
[1765910256197,0.01627,87798.0,87789.0,0.0113934]
[1765910256401,0.0662022,87798.0,87797.0,0.05723]
[1765910256909,0.05481,87798.0,87797.0,0.05723]
[1765910257502,0.02758,87798.0,87797.0,0.05723]
[1765910260014,0.05481,87798.0,87797.0,0.05723]
[1765910261203,0.082473,87792.0,87791.0,0.05723]
[1765910261904,0.05481,87790.0,87789.0,0.00017087]
[1765910262104,0.05481,87790.0,87789.0,0.05740087]
[1765910265319,0.05481,87790.0,87789.0,0.00017087]
[1765910266007,0.0662054,87774.0,87773.0,0.41803]
[1765910266613,0.0662065,87765.0,87764.0,0.41803]
[1765910266914,0.0662065,87765.0,87764.0,0.05723]
[1765910267315,0.0662065,87765.0,87764.0,0.02844]
[1765910268013,0.0662065,87765.0,87764.0,0.02944]
[1765910268209,0.0662065,87765.0,87764.0,0.001]
[1765910269223,0.0662065,87765.0,87764.0,0.02944]
[1765910269710,0.0672065,87765.0,87764.0,0.02944]
[1765910270020,0.0672065,87765.0,87764.0,0.02844]
[1765910273020,0.066207,87761.0,87760.0,0.05723]
[1765910273215,0.066207,87761.0,87760.0,0.02844]
[1765910273416,0.05481,87757.0,87756.0,0.05740087]
[1765910274519,0.05481,87757.0,87756.0,0.00017087]
[1765910274919,0.0662114,87728.0,87727.0,0.05723]
[1765910275316,0.05481,87728.0,87727.0,0.05723]
[1765910276222,0.02758,87728.0,87727.0,0.05723]
[1765910276430,0.05481,87733.0,87732.0,0.02844]
[1765910276611,0.05481,87725.0,87724.0,0.41803]
[1765910277012,0.05481,87725.0,87724.0,0.38924]
[1765910277213,0.05481,87725.0,87724.0,0.02844]
[1765910277416,0.01627,87728.0,87719.0,0.00017098]
[1765910277417,0.0824824,87720.0,87719.0,0.00017098]
[1765910277824,0.0824824,87720.0,87719.0,0.02861098]
[1765910278216,0.07108,87720.0,87719.0,0.02861098]
[1765910278426,0.07108,87720.0,87719.0,0.05840098]
[1765910279319,0.02758,87720.0,87719.0,0.05840098]
[1765910279718,0.05481,87720.0,87719.0,0.05840098]
[1765910279924,0.05481,87720.0,87719.0,0.05740098]
[1765910280119,0.07108,87720.0,87719.0,0.05740098]
[1765910280326,0.714,87722.0,87721.0,0.05723]
[1765910280518,0.05481,87727.0,87726.0,0.0686316]
[1765910280722,0.05481,87727.0,87726.0,0.05723]
[1765910280922,0.05481,87723.0,87722.0,0.0686321]
[1765910281229,0.05481,87723.0,87719.0,0.00117098]
[1765910281230,0.07108,87720.0,87719.0,0.00117098]
[1765910281728,0.07108,87720.0,87719.0,0.00017098]
[1765910282228,0.05481,87704.0,87703.0,0.41812871]
[1765910283032,0.0662137,87710.0,87709.0,0.05723]
[1765910283924,0.02758,87710.0,87709.0,0.0686338]
[1765910284125,0.77176,87713.0,87712.0,0.0689234]
[1765910284429,0.05764,87713.0,87712.0,0.0689234]
[1765910284631,0.71416,87714.0,87713.0,0.05752]
[1765910284823,0.00017098,87718.0,87711.0,0.3608]
[1765910284824,0.00017098,87718.0,87717.0,0.0689228]
[1765910286025,0.05781098,87718.0,87717.0,0.0689228]
[1765910286220,0.05781098,87718.0,87717.0,0.001]
[1765910286627,0.05781098,87718.0,87717.0,0.05852]
[1765910286826,0.05781098,87718.0,87717.0,0.05752]
[1765910287027,0.05781098,87718.0,87717.0,0.0709228]
[1765910287424,0.05781098,87718.0,87717.0,0.0699228]
[1765910287625,0.05881098,87718.0,87717.0,0.0699228]
[1765910288533,0.05881098,87718.0,87717.0,0.001]
[1765910288832,0.05881098,87718.0,87703.0,9.871e-05]
[1765910288833,0.0690444,87704.0,87703.0,9.871e-05]
[1765910289030,1.5048844,87704.0,87703.0,9.871e-05]
[1765910290438,1.5068844,87704.0,87703.0,9.871e-05]
[1765910290638,1.1462444,87704.0,87703.0,0.05761871]
[1765910291734,0.002,87704.0,87703.0,0.05761871]
[1765910292825,0.05864,87704.0,87703.0,0.05761871]
[1765910293026,0.05764,87704.0,87703.0,0.05761871]
[1765910293225,0.05764,87704.0,87703.0,0.05861871]
[1765910294132,0.05764,87704.0,87703.0,0.05961871]
[1765910295040,0.05764,87704.0,87684.0,0.011407]
[1765910295041,0.0114043,87706.0,87675.0,0.3608]
[1765910295235,0.02826,87677.0,87676.0,0.05752]
[1765910295442,0.069048,87677.0,87676.0,0.05752]
[1765910295934,0.0114074,87682.0,87679.0,0.0114076]
[1765910296136,0.3608,87685.0,87679.0,0.0689276]
[1765910296137,0.07467,87680.0,87679.0,0.0689276]
[1765910297526,0.07467,87680.0,87679.0,0.0699277]
[1765910297725,0.07467,87680.0,87679.0,0.001]
[1765910298525,0.0690485,87673.0,87672.0,0.00017108]
[1765910298729,0.0690485,87673.0,87672.0,0.02817108]
[1765910299740,0.0690485,87673.0,87672.0,0.02917108]
[1765910300042,0.0690485,87673.0,87672.0,0.03017108]
[1765910301039,0.0690485,87673.0,87672.0,0.00217108]
[1765910301540,0.0690499,87662.0,87661.0,0.41832]
[1765910301735,0.06913791,87662.0,87661.0,0.41832]
[1765910302343,0.05772801,87662.0,87661.0,0.41832]
[1765910302641,0.05772801,87662.0,87661.0,0.42332]
[1765910304039,8.801e-05,87662.0,87661.0,0.42332]
[1765910305232,0.05772801,87662.0,87661.0,0.42332]
[1765910305536,8.801e-05,87662.0,87661.0,0.42332]
[1765910305742,0.05772801,87662.0,87661.0,0.42332]
[1765910307242,0.05772801,87662.0,87661.0,0.3658]
[1765910307540,0.41852801,87662.0,87661.0,0.005]
[1765910308737,0.41852801,87662.0,87661.0,0.003]
[1765910308943,0.41852801,87662.0,87653.0,0.0001149]
[1765910308944,0.069051,87654.0,87653.0,0.0001149]
[1765910309142,1.14477077,87654.0,87653.0,0.0001149]
[1765910309338,1.14477077,87654.0,87653.0,0.0281149]
[1765910309844,1.14477077,87654.0,87653.0,0.0001149]
[1765910310044,1.14477077,87654.0,87653.0,0.0021149]
[1765910310835,1.14509077,87654.0,87653.0,0.0596349]
[1765910311239,1.14509077,87654.0,87653.0,0.0626349]
[1765910311644,1.14509077,87654.0,87653.0,0.0051149]
[1765910312850,1.14509077,87654.0,87653.0,0.0626349]
[1765910313247,1.14509077,87654.0,87653.0,0.0051149]
[1765910313443,1.13367977,87654.0,87653.0,0.0331149]
[1765910313746,1.13367977,87654.0,87653.0,0.0626349]
[1765910314342,0.41855977,87654.0,87653.0,0.0626349]
[1765910314645,1.00683977,87654.0,87653.0,0.0626349]
[1765910315241,1.00683977,87654.0,87653.0,0.0331149]
[1765910315441,1.00683977,87654.0,87653.0,0.0051149]
[1765910317955,1.00683977,87654.0,87653.0,0.0337549]
[1765910318146,1.13359977,87654.0,87653.0,0.0337549]
[1765910318346,1.13359977,87654.0,87653.0,0.0051149]
[1765910318546,1.13359977,87654.0,87653.0,0.0337549]
[1765910318858,1.13359977,87654.0,87653.0,0.0051149]
[1765910319152,1.13359977,87654.0,87653.0,0.0627349]
[1765910319342,0.77279977,87654.0,87653.0,0.0627349]
[1765910320759,0.78421077,87654.0,87653.0,0.0627349]
[1765910320955,0.05775977,87654.0,87653.0,0.0627349]
[1765910321150,0.77275977,87654.0,87653.0,0.0627349]
[1765910321351,0.05775977,87654.0,87653.0,0.0627349]
[1765910321543,0.77275977,87654.0,87653.0,0.0627349]
[1765910321743,0.77275977,87654.0,87653.0,0.074146]
[1765910321744,0.78417077,87654.0,87653.0,0.074146]
[1765910321944,0.77275977,87654.0,87653.0,0.074146]
[1765910322446,0.05775977,87654.0,87653.0,0.074146]
[1765910322652,0.58743977,87654.0,87653.0,0.074146]
[1765910322947,0.00011977,87654.0,87653.0,0.074146]
[1765910323148,0.71507977,87654.0,87653.0,0.074146]
[1765910323350,0.74377977,87654.0,87653.0,0.074146]
[1765910323543,0.78442077,87654.0,87653.0,0.074146]
[1765910323841,0.80178077,87654.0,87653.0,0.074146]
[1765910324041,0.77300977,87654.0,87653.0,0.074146]
[1765910324455,0.05804977,87654.0,87653.0,0.074146]
[1765910324754,0.02881977,87654.0,87653.0,0.074146]
[1765910325258,0.00011977,87654.0,87653.0,0.074146]
[1765910326152,0.05804977,87654.0,87653.0,0.074146]
[1765910326449,0.00011977,87654.0,87653.0,0.074146]
[1765910327157,0.05804977,87654.0,87653.0,0.074146]
[1765910327456,0.06946077,87654.0,87653.0,0.074146]
[1765910327950,0.07540977,87654.0,87653.0,0.074146]
[1765910328353,0.02881977,87654.0,87653.0,0.074146]
[1765910328553,0.00011977,87654.0,87653.0,0.074146]
[1765910328949,0.00017108,87670.0,87668.0,0.05762]
[1765910328950,0.05793,87669.0,87668.0,0.05762]
[1765910329144,0.00017108,87670.0,87669.0,0.069029]
[1765910330853,0.00017108,87670.0,87669.0,0.070029]
[1765910331752,0.05810108,87670.0,87669.0,0.070029]
[1765910332263,0.00017108,87670.0,87669.0,0.070029]
[1765910333859,0.02887108,87670.0,87669.0,0.070029]
[1765910334679,0.05810108,87670.0,87669.0,0.070029]
[1765910335466,0.05810108,87670.0,87669.0,0.02964]
[1765910335666,0.05810108,87670.0,87669.0,0.001]
[1765910335961,0.05810108,87670.0,87669.0,0.02964]
[1765910337361,0.05810108,87670.0,87669.0,0.05862]
[1765910341563,0.00017108,87670.0,87669.0,0.05862]
[1765910341771,0.05810108,87670.0,87669.0,0.05862]
[1765910342565,0.06950998,87670.0,87669.0,0.05862]
[1765910342765,0.06950998,87670.0,87669.0,0.001]
[1765910344564,0.06950998,87670.0,87669.0,0.02918]
[1765910344766,0.06950998,87670.0,87669.0,0.05764]
[1765910344767,0.78430998,87670.0,87669.0,0.05764]
[1765910344968,0.78430998,87670.0,87669.0,0.001]
[1765910346167,0.78430998,87670.0,87669.0,0.05764]
[1765910346868,0.77290108,87670.0,87669.0,0.05764]
[1765910347470,0.77290108,87670.0,87669.0,0.02918]
[1765910347872,0.77290108,87670.0,87669.0,0.001]
[1765910349468,0.05563,87659.0,87658.0,0.0114102]
[1765910349683,0.05563,87659.0,87658.0,0.0680502]
[1765910350872,0.05563,87659.0,87658.0,0.0690502]
[1765910351074,0.05563,87659.0,87658.0,0.0710502]
[1765910351771,0.0670393,87668.0,87667.0,0.0680493]
[1765910351974,0.05563,87663.0,87662.0,0.05664]
[1765910353075,0.01,96600.0,87661.0,0.3608]
[1765910353260,0.3218,87783.0,87670.0,0.00099999]
[1765910353464,0.05563,87767.0,87766.0,0.0395764]
[1765910353767,0.01689,87787.0,87776.0,0.05664]
[1765910353768,0.04363,87777.0,87776.0,0.05664]
[1765910353973,0.05563,87781.0,87780.0,0.00099999]
[1765910354173,0.05563,87781.0,87780.0,0.03580944]
[1765910354467,1.12606827,87781.0,87780.0,0.09244944]
[1765910354677,0.00017087,87785.0,87784.0,0.05664]
[1765910354876,0.00017087,87785.0,87784.0,0.09244944]
[1765910355264,0.15626867,87820.0,87795.0,0.0113925]
[1765910355571,0.15626867,87820.0,87790.0,0.00099999]
[1765910355572,0.05563,87797.0,87796.0,0.03580944]
[1765910355762,0.05563,87797.0,87796.0,0.39660944]
[1765910355967,0.45891,87797.0,87796.0,0.75740944]
[1765910356466,1.58497827,87797.0,87796.0,0.75740944]
[1765910357777,1.58597827,87797.0,87796.0,0.75740944]
[1765910358075,1.58697827,87797.0,87796.0,0.75740944]
[1765910358467,1.58697827,87797.0,87796.0,0.76880194]
[1765910358671,1.58697827,87797.0,87796.0,0.75740944]
[1765910358870,0.46091,87797.0,87796.0,0.75740944]
[1765910359266,0.46091,87797.0,87796.0,0.78747035]
[1765910362171,0.46091,87797.0,87796.0,0.75740944]